[Event "US Masters"]
[Site "Charlotte USA"]
[Date "2023.11.23"]
[Round "2.8"]
[White "Sai Krishna, GV."]
[Black "Harsha, Bharathakoti"]
[Result "1/2-1/2"]
[ECO "B42"]
[WhiteElo "2376"]
[BlackElo "2563"]
[PlyCount "100"]
[EventDate "2023.11.24"]
[EventType "swiss"]
[EventRounds "9"]
[EventCountry "USA"]
[Source "ChessMix"]
[SourceDate "2023.12.01"]
[TimeControl "5400+30"]

1. e4 {[%emt 0:00:19]} c5 {[%emt 0:01:26]} 2. Nf3 {[%emt 0:00:04]} e6 {
[%emt 0:01:02]} 3. d4 {[%emt 0:00:04]} cxd4 {[%emt 0:00:06]} 4. Nxd4 {
[%emt 0:00:03]} a6 {[%emt 0:03:30]} 5. Bd3 {[%emt 0:00:04]} Bc5 {[%emt 0:00:08]
} 6. Nb3 {[%emt 0:00:08]} Ba7 {[%emt 0:00:05]} 7. Qg4 {[%emt 0:00:06]} Nf6 {
[%emt 0:00:06]} 8. Qg3 {[%emt 0:00:03]} d6 {[%emt 0:00:09]} 9. Nc3 {
[%emt 0:00:03]} Nc6 {[%emt 0:00:07]} 10. Bg5 {[%emt 0:01:51]} h6 {
[%emt 0:03:18]} 11. Bd2 {[%emt 0:01:44]} b5 {[%emt 0:00:09]} 12. O-O-O {
[%emt 0:12:47]} b4 {[%emt 0:01:27]} 13. Ne2 {[%emt 0:02:04]} Kf8 {
[%emt 0:01:33]} 14. e5 {[%emt 0:14:03]} Nxe5 {[%emt 0:00:51]} 15. Bxb4 {
[%emt 0:03:04]} Qb6 {[%emt 0:02:17]} 16. Bb5 {[%emt 0:08:56]} Kg8 {
[%emt 0:15:00]} 17. Bxd6 {[%emt 0:02:37]} Neg4 {[%emt 0:05:50]} 18. Ba4 {
[%emt 0:17:07]} Nxf2 {[%emt 0:07:13]} 19. Bc5 {[%emt 0:02:27]} Nxh1 {
[%emt 0:06:20]} 20. Qf3 {[%emt 0:00:03]} Bb7 {[%emt 0:08:55]} 21. Qe3 {
[%emt 0:00:47]} Qc7 {[%emt 0:03:13]} 22. Bxa7 {[%emt 0:00:12]} Qxh2 {
[%emt 0:20:09]} 23. Bd4 {[%emt 0:09:05]} Ng4 {[%emt 0:00:54]} 24. Qg1 {
[%emt 0:00:13]} Qxg2 {[%emt 0:03:57]} 25. Nc5 {[%emt 0:08:28]} Qxg1 {
[%emt 0:02:13]} 26. Rxg1 {[%emt 0:00:03]} Bf3 {[%emt 0:00:04]} 27. Ng3 {
[%emt 0:00:18]} e5 {[%emt 0:00:57]} 28. Bc3 {[%emt 0:00:27]} Nxg3 {
[%emt 0:03:33]} 29. Rxg3 {[%emt 0:00:13]} e4 {[%emt 0:00:01]} 30. Nxe4 {
[%emt 0:00:36]} Bxe4 {[%emt 0:00:03]} 31. Rxg4 {[%emt 0:00:06]} Bg6 {
[%emt 0:00:02]} 32. Bb3 {[%emt 0:00:14]} Kf8 {[%emt 0:02:52]} 33. Bb4+ {
[%emt 0:00:31]} Ke8 {[%emt 0:00:03]} 34. Ba4+ {[%emt 0:03:06]} Kd8 {
[%emt 0:00:02]} 35. Rd4+ {[%emt 0:01:45]} Kc8 {[%emt 0:00:06]} 36. Bd7+ {
[%emt 0:07:04]} Kb7 {[%emt 0:07:00]} 37. Ba5 {[%emt 0:02:22]} Rac8 {
[%emt 0:01:05]} 38. Bxc8+ {[%emt 0:02:02]} Rxc8 {[%emt 0:00:02]} 39. Bc3 {
[%emt 0:00:06]} Rc6 {[%emt 0:01:56]} 40. Rb4+ {[%emt 0:00:56]} Kc8 {
[%emt 0:00:13]} 41. Bxg7 {[%emt 0:00:29]} Rxc2+ {[%emt 0:00:08]} 42. Kd1 {
[%emt 0:00:03]} h5 {[%emt 0:00:57]} 43. Rb6 {[%emt 0:00:48]} Rg2 {
[%emt 0:00:32]} 44. Bf6 {[%emt 0:00:59]} Bd3 {[%emt 0:01:33]} 45. Rd6 {
[%emt 0:00:05]} Bb5 {[%emt 0:00:37]} 46. Rd8+ {[%emt 0:00:15]} Kc7 {
[%emt 0:00:04]} 47. Rd2 {[%emt 0:01:51]} Rxd2+ {[%emt 0:00:57]} 48. Kxd2 {
[%emt 0:00:02]} Kd7 {[%emt 0:00:05]} 49. Ke3 {[%emt 0:00:06]} Ke6 {
[%emt 0:00:03]} 50. Bd8 {[%emt 0:00:39]} Kf5 {[%emt 0:00:03]} 1/2-1/2

[Event "US Masters"]
[Site "Charlotte USA"]
[Date "2023.11.24"]
[Round "3.21"]
[White "Zhou, Jianchao"]
[Black "Sai Krishna, GV."]
[Result "1-0"]
[ECO "E90"]
[WhiteElo "2557"]
[BlackElo "2376"]
[PlyCount "127"]
[EventDate "2023.11.24"]
[EventType "swiss"]
[EventRounds "9"]
[EventCountry "USA"]
[Source "ChessMix"]
[SourceDate "2023.12.01"]
[TimeControl "5400+30"]

1. d4 {[%emt 0:01:06]} Nf6 {[%emt 0:00:07]} 2. c4 {[%emt 0:00:05]} g6 {
[%emt 0:00:02]} 3. Nc3 {[%emt 0:00:06]} Bg7 {[%emt 0:00:02]} 4. e4 {
[%emt 0:00:05]} d6 {[%emt 0:00:01]} 5. h3 {[%emt 0:00:05]} O-O {[%emt 0:00:20]}
6. Be3 {[%emt 0:00:55]} c5 {[%emt 0:02:39]} 7. Nf3 {[%emt 0:00:13]} Qa5 {
[%emt 0:06:37]} 8. Bd3 {[%emt 0:02:27]} Nfd7 {[%emt 0:09:21]} 9. Be2 {
[%emt 0:03:00]} f5 {[%emt 0:07:05]} 10. exf5 {[%emt 0:01:24]} gxf5 {
[%emt 0:00:10]} 11. O-O {[%emt 0:03:35]} Nc6 {[%emt 0:10:40]} 12. d5 {
[%emt 0:02:41]} Nce5 {[%emt 0:00:15]} 13. Bg5 {[%emt 0:05:01]} Ng6 {
[%emt 0:05:31]} 14. Nh4 {[%emt 0:04:26]} Bxc3 {[%emt 0:08:13]} 15. bxc3 {
[%emt 0:05:21]} Nf6 {[%emt 0:02:47]} 16. Qc1 {[%emt 0:07:25]} Ne4 {
[%emt 0:06:34]} 17. Bh5 {[%emt 0:03:27]} Qxc3 {[%emt 0:13:56]} 18. Qxc3 {
[%emt 0:03:18]} Nxc3 {[%emt 0:25:10]} 19. Bxg6 {[%emt 0:04:54]} hxg6 {
[%emt 0:00:00]} 20. Nxg6 {[%emt 0:00:10]} Re8 {[%emt 0:00:00]} 21. Nxe7+ {
[%emt 0:00:30]} Kf7 {[%emt 0:00:00]} 22. Nxc8 {[%emt 0:00:23]} Raxc8 {
[%emt 0:00:00]} 23. Rfe1 {[%emt 0:02:20]} b5 {[%emt 0:00:00]} 24. cxb5 {
[%emt 0:01:18]} Nxd5 {[%emt 0:03:00]} 25. Red1 {[%emt 0:12:06]} Ke6 {
[%emt 0:00:30]} 26. Rac1 {[%emt 0:02:15]} Nb6 {[%emt 0:00:30]} 27. Rd3 {
[%emt 0:03:29]} d5 {[%emt 0:00:00]} 28. Re3+ {[%emt 0:02:21]} Kf7 {
[%emt 0:00:00]} 29. Ra3 {[%emt 0:00:33]} d4 {[%emt 0:00:00]} 30. Rxa7+ {
[%emt 0:00:23]} Kg6 {[%emt 0:02:00]} 31. h4 {[%emt 0:01:23]} Nd5 {
[%emt 0:00:00]} 32. Ra6+ {[%emt 0:02:43]} Kf7 {[%emt 0:00:00]} 33. b6 {
[%emt 0:00:32]} Rc6 {[%emt 0:00:00]} 34. Ra7+ {[%emt 0:02:49]} Kg6 {
[%emt 0:02:00]} 35. b7 {[%emt 0:06:07]} Rb8 {[%emt 0:00:00]} 36. a4 {
[%emt 0:00:29]} Nc3 {[%emt 0:01:00]} 37. Kh2 {[%emt 0:05:16]} Rb6 {
[%emt 0:00:00]} 38. Be7 {[%emt 0:02:07]} R8xb7 {[%emt 0:00:00]} 39. Rxb7 {
[%emt 0:00:43]} Rxb7 {[%emt 0:00:00]} 40. Bxc5 {[%emt 0:00:10]} Ne2 {
[%emt 0:02:00]} 41. Rd1 {[%emt 0:01:49]} Rb2 {[%emt 0:00:00]} 42. a5 {
[%emt 0:01:28]} Ra2 {[%emt 0:00:00]} 43. Bxd4 {[%emt 0:00:31]} Ra4 {
[%emt 0:00:00]} 44. h5+ {[%emt 0:03:05]} Kf7 {[%emt 0:00:25]} 45. Ra1 {
[%emt 0:03:40]} Rxd4 {[%emt 0:00:29]} 46. g3 {[%emt 0:00:07]} Rd7 {
[%emt 0:00:35]} 47. a6 {[%emt 0:00:01]} Ra7 {[%emt 0:00:05]} 48. Kh3 {
[%emt 0:02:00]} Kf6 {[%emt 0:00:58]} 49. Ra5 {[%emt 0:00:18]} Nd4 {
[%emt 0:00:34]} 50. Rd5 {[%emt 0:00:19]} Ne6 {[%emt 0:01:54]} 51. Rd6 {
[%emt 0:00:06]} Ke5 {[%emt 0:00:00]} 52. Rc6 {[%emt 0:01:50]} Nc7 {
[%emt 0:00:00]} 53. Kh4 {[%emt 0:01:08]} Nxa6 {[%emt 0:00:00]} 54. Kg5 {
[%emt 0:00:08]} Nb4 {[%emt 0:00:00]} 55. f4+ {[%emt 0:00:08]} Kd5 {
[%emt 0:02:30]} 56. Rf6 {[%emt 0:01:04]} Rg7+ {[%emt 0:00:00]} 57. Rg6 {
[%emt 0:00:12]} Rf7 {[%emt 0:00:00]} 58. h6 {[%emt 0:00:24]} Nc6 {
[%emt 0:00:00]} 59. Rg7 {[%emt 0:00:48]} Nd8 {[%emt 0:00:00]} 60. Kg6 {
[%emt 0:01:29]} Ke6 {[%emt 0:00:00]} 61. h7 {[%emt 0:00:48]} Rf6+ {
[%emt 0:00:23]} 62. Kh5 {[%emt 0:00:03]} Rf8 {[%emt 0:01:30]} 63. Rg8 {
[%emt 0:00:14]} Kf7 {[%emt 0:00:04]} 64. Rxf8+ {[%emt 0:00:06]} 1-0

[Event "US Masters"]
[Site "Charlotte USA"]
[Date "2023.11.25"]
[Round "6.11"]
[White "Sai Krishna, GV."]
[Black "Canty, James"]
[Result "1-0"]
[ECO "B35"]
[WhiteElo "2376"]
[BlackElo "2154"]
[PlyCount "69"]
[EventDate "2023.11.24"]
[EventType "swiss"]
[EventRounds "9"]
[EventCountry "USA"]
[Source "ChessMix"]
[SourceDate "2023.12.01"]
[TimeControl "5400+30"]

1. e4 {[%emt 1:31:00]} c5 {[%emt 0:07:03]} 2. Nf3 {[%emt 0:00:00]} g6 {
[%emt 0:00:04]} 3. d4 {[%emt 0:00:00]} cxd4 {[%emt 0:00:03]} 4. Nxd4 {
[%emt 0:00:00]} Bg7 {[%emt 0:00:07]} 5. Nc3 {[%emt 0:00:00]} Nc6 {
[%emt 0:00:03]} 6. Be3 {[%emt 0:00:00]} Nf6 {[%emt 1:26:10]} 7. Bc4 {
[%emt 0:00:00]} Qa5 {[%emt 0:00:00]} 8. O-O {[%emt 0:00:00]} O-O {
[%emt 0:00:00]} 9. Bb3 {[%emt 0:00:00]} d6 {[%emt 0:00:00]} 10. h3 {
[%emt 0:00:00]} Bd7 {[%emt 0:00:00]} 11. Re1 {[%emt 0:00:00]} Rac8 {
[%emt 0:00:00]} 12. Qd2 {[%emt 0:00:00]} Ne5 {[%emt 0:00:00]} 13. Nd5 {
[%emt 0:00:00]} Qd8 {[%emt 0:00:00]} 14. Bh6 {[%emt 0:00:00]} Nxd5 {
[%emt 0:00:00]} 15. exd5 {[%emt 0:00:00]} Qb6 {[%emt 0:00:00]} 16. Bxg7 {
[%emt 0:00:00]} Kxg7 {[%emt 0:00:00]} 17. Re4 {[%emt 0:00:00]} a5 {
[%emt 0:00:00]} 18. a4 {[%emt 0:00:00]} f5 {[%emt 0:00:00]} 19. Rh4 {
[%emt 0:00:00]} h5 {[%emt 0:00:00]} 20. Re1 {[%emt 0:00:00]} Rf7 {
[%emt 0:00:00]} 21. Qg5 {[%emt 0:00:00]} Rf6 {[%emt 0:00:00]} 22. Ne2 {
[%emt 0:00:00]} Nf7 {[%emt 0:00:00]} 23. Qg3 {[%emt 0:00:00]} Kf8 {
[%emt 0:00:00]} 24. Nf4 {[%emt 0:00:00]} g5 {[%emt 0:00:00]} 25. Nxh5 {
[%emt 0:00:00]} Rh6 {[%emt 0:00:00]} 26. Re6 {[%emt 0:00:00]} Bxe6 {
[%emt 0:00:24]} 27. dxe6 {[%emt 0:00:00]} Rxc2 {[%emt 0:05:28]} 28. Bxc2 {
[%emt 0:00:00]} Qxb2 {[%emt 0:00:16]} 29. exf7 {[%emt 0:00:00]} Qc1+ {
[%emt 0:02:09]} 30. Kh2 {[%emt 0:00:00]} Re6 {[%emt 0:00:03]} 31. Nf4 {
[%emt 0:00:00]} Re1 {[%emt 0:00:24]} 32. Rh8+ {[%emt 0:00:00]} Kxf7 {
[%emt 0:00:06]} 33. Bb3+ {[%emt 0:00:00]} e6 {[%emt 0:00:52]} 34. Bxe6+ {
[%emt 0:00:00]} Kf6 {[%emt 0:00:09]} 35. Rh6+ {[%emt 0:00:00]} 1-0